{"text_format":"3","workbook":"xlsx","n_sheets":12,"sheets":["Control","Menu","Favorites","Getting Around","Groceries & Pharmacies","Fun Stuff","Restaurants","Neighborhood Farmers Markets","Museums & Galleries","Shopping & Business","Stadiums & Venues","Medical & Research Centers"],"not_rendered":{"images":33,"defined_names":457},"read":"whole","date_system":"1900"}

{"sheet":"Control","index":0,"n_rows":119,"n_cols":6,"rows_kept":119,"hidden":true}
["Copyright:","Copyright 2026 Jack Rosellini, Rosebud Systems©, all rights reserved."]
["Form Updated:","2026-02-15T14:40:37"]
["Product:","Rosebud Property Management System"]
[]
["FILE INFO",{"$f":"COUNTA(A6:A18)&\" Lines\"","v":"13 Lines"},"SHEET INFO",{"$f":"COUNTA(C6:C27)&\" Lines\"","v":"22 Lines"}]
["Document Title:","Application","SheetTitle","Application"]
["File Name:",{"$f":"IF(BookName=\"\",\"\",Book_Guest_Name&\"-\"&DocumentTitle&\"-\"&FileDate)","v":"SELECT GUEST-Application-260216"},"Sheet Type","Main"]
["File Location:","C:\\Data\\J&D Rentals\\Applications","Template Type:","Application"]
["Template Name:","Application.xltx","Sheet Date:",{"$f":"TEXT(YEAR(TODAY())-2000,\"00\") & TEXT(MONTH(TODAY()),\"00\")& TEXT(DAY(TODAY()),\"00\")","v":"260216"}]
["File Date:",{"$f":"TEXT(YEAR(TheDate)-2000,\"00\")&TEXT(MONTH(TheDate),\"00\")&TEXT(DAY(TheDate),\"00\")","v":"260216"},"Menu ButtonName:","Application"]
["Next Doc No:",100,"PDF Filename:"]
["Extension:",".xlsx","PDF Location:"]
["Saved:",null,"SheetLoc",690531]
["Saved As:",null,"Lock Type:"]
["Doc Lock:",690531,"Pass Level:",0]
["Create Date:",{"$f":"TODAY()","v":"2026-02-16"},"Pass Edit:"]
["Revised Date:",{"$f":"NOW()","v":"2026-02-16T18:01:37.090"},"Edit page:"]
["Author:","Jack Rosellini","Protect Sections:",0]
["Form Specific:",false,"Clear Sections:",0]
[null,null,"Print Sheet",true]
["COMPANY INFO",{"$f":"COUNTA(A22:A30)&\" Lines\"","v":"9 Lines"},"Email Sheet:",true]
["Company:","Jack & Diane Rentals","Hide Sheet:",true]
["Street:","2201 Broadway East","Hide Offset:",1]
["City, State Zip:","Seattle, WA 98102","Scroll Lock:",2]
["Contact1:","Jack Rosellini","Help No:",0]
["Phone1:",2066178887,"Came From:","Rentals.xlsm"]
["Email1:","jackrosellini@live.com","From Sheet:","Menu"]
["Contact2:","Diane Rosellini"]
["Phone2:",2062956114]
["Email2:","diane@dianerosellini.com"]
[null,null,"PROPERTY INFO",{"$f":"\"Lines: \"&COUNTA(C32:C68)","v":"Lines: 37"},"BOOKING INFO",{"$f":"\"Lines: \"&COUNTA(E32:E74)","v":"Lines: 42"}]
["CLIENT INFO",{"$f":"\"Lines: \"&COUNTA(A33:A44)","v":"Lines: 12"},"Prop Name:",{"$f":"Book_PropName","v":"810 Boston Street ADU"},"Booking Index:",4]
["Client Name:","Jack Rosellini & Diane Rosellini","Prop GuestName:","David Smith","Booking No:","B100"]
["Client Contact 1:","Jack Rosellini","Prop Owner:","Jack Rosellini & Diane Rosellini","Booking Name:","Applicant"]
["Client Phone1:",2066178887,"Prop Contact1:","Jack Rosellini","Property Name:","810 Boston Street ADU"]
["Client Email1:","jackrosellini@live.com","Prop Phone1:",2066178887,"Guest Name:","SELECT GUEST"]
["Client Contact 2:","Diane Rosellini","Prop Email1:","jackrosellini@live.com","Occupancy Status",0]
["Client Phone 2:",2062956114,"Prop Description:","Apartment with Panoramic City View Deck","Stay Rating:",0]
["Client Email 2:","diane@dianerosellini.com","Prop Street:","810 East Boston Street","Number Of Guests:",0]
["Client Street:","2201 Broadway East","Prop City:","Seattle","Check In Date:","00:00:00"]
["Client City:","Seattle","Prop State:","WA","Day:",""]
["Client State:","WA","Prop Zip:",98102,"Check Out Date:","00:00:00"]
["Client Zip:",98102,"Prop Network:","Network","Day:",""]
["Client  Notes:",0,"Prop_NetPassword:","isaacasimon","Security Deposit",{"v":0,"d":"$0.00"}]
["Client City State Zip:",{"$f":"IF(ClientName=\"\",\"\",Client_City&\", \"&Client_State&\" \"&Client_Zip)","v":"Seattle, WA 98102"},"Prop NetPrinter:","MFC-J6910DW","Deposit Date:","00:00:00"]
[null,null,"Prop Check In Time:","After 3pm","Special Discount Percent:",{"v":0,"d":"0.00%"}]
["GUEST INFO",{"$f":"COUNTA(A48:A70)&\" Lines\"","v":"23 Lines"},"Prop Check Out Time:","By 11:00am","Notes:",0]
["Guest Name:",{"$f":"IF(OR(Book_Guest_Name=\"\",Book_Guest_Name=\"SELECT GUEST\"),\"\",Book_Guest_Name)","v":""},"Prop Emergency Contact:","Matt Woare","Sent Docs By Email:","00:00:00"]
["Guest FirstName1:","","Prop Emergency Phone:",2069157443,"Door Code:",0]
["Guest LastName1:","","Prop Website:","www.jackrosellini.com","Max Guests:",6]
["Guest FIrstName2:","","Prop Rate No:","R103","Guests Included in Lease",4]
["Guest LastName2:","","Prop Rate Base:",{"v":2800,"d":"$2,800.00"},"Date of Booking","00:00:00"]
["Rating 0-5","","Prop Rate Annual:",{"v":4600,"d":"$4,600.00"},"Lead Days:",""]
["Home Street:","","Prop Rate Monthly:",{"v":5300,"d":"$5,300.00"},"Guest Days:",""]
["City:","","Prop Rate Weekly:",{"v":1820,"d":"$1,820.00"},"Rental Type:","Long Term"]
["State:","","Prop_Rate Daily:",{"v":340,"d":"$340.0"},"Cost Of Stay:",""]
["Zip:","","Prop Max Guests:",6,"Monthly One Year Lease:",{"v":4600,"d":"$4,600.00"}]
["Home City State Zip","","Prop Included Guests:",4,"Monthly Rate:",{"v":5300,"d":"$5,300.00"}]
["Guest Phone1:","","Prop Rate Extra Guests:",25,"Weekly Rate:",""]
["Guest Email1:","","Prop Default Security Deposit:",4600,"Extra Guests Daily Rate",{"v":25,"d":"$25.00"}]
["Guest Phone2:","","Prop Credit Check Fee:",100,"Daily Rate",{"v":340,"d":"$340.00"}]
["Guest Email2:","","Prop Application Fee:",200,"Default Security Deposit:",{"v":4600,"d":"$4,600.00"}]
["Current Property:","","Prop Cleaning Fee:",250,"Credit Check Fee",{"v":100,"d":"$100.00"}]
["Guest_Deposit:","","Prop Days Between:",2,"Application Fee",{"v":200,"d":"$200.00"}]
["Guest Commitment:","","Prop Days Minimum:",7,"Cleaning Fee:",{"v":250,"d":"$250.00"}]
["Guest Monthly:","","Prop Daily Expenses",{"v":60,"d":"$60.00"},"No Refund Cutoff:",7]
["Total Invoiced","","Property No:","P101","50% Refund Cutoff:",30]
["Total Paid","","Prop Notes:",0,"Check-In Year:",""]
["Current Balance","","Prop City State Zip:",{"$f":"IF(PropName=\"\",\"\",Prop_City&\", \"&Prop_State&\" \"&Prop_Zip)","v":"Seattle, WA 98102"},"Check-In Month:",""]
["Guest Notes:","",null,null,"Check-Out Year:",""]
[{"$nulls":4},"Check-Out Month:",""]
["ALL FORMS - EMAIL INFO",{"$f":"COUNTA(A73:A86)&\" Lines\"","v":"14 Lines"},"OTHER",{"$f":"COUNTA(C73:C77)&\" Lines\"","v":"4 Lines"},"Cleaning Dates:",""]
["Email Group:","C1","Late Payment Fee:",{"v":100,"d":"$100.00"},"Year Month:","21-08"]
["E_FromName:","Jack Rosellini","Interest Rate:",{"v":0.12000000000000001,"d":"12.00%"}]
["E_FromEmail:","jackrosellini@live.com","Grace Period:",7]
["E_FromPhone:",2066178887]
["E_ToName:",{"$f":"GuestName","v":""},"In Emergency Call:","Emergency Call: 911"]
["E_ToEmail:",{"$f":"Guest_Email1","v":""}]
["E_ToCC:",{"$f":"IF(Guest_Email2=0,\"\",Guest_Email2)","v":""}]
["E_ToBCC:","jackrosellini@live.com"]
["Email Subject:",{"$f":"INDEX(INDIRECT(\"'Rentals.xlsm'!Email_\" & E_Group),(ROW()-ROW(E_Subject)+1))","v":"Check List"}]
["Body1:",{"$f":"INDEX(INDIRECT(\"'Rentals.xlsm'!Email_\" & E_Group),(ROW()-ROW(E_Subject)+1))","v":"This check list contains private information and may not be shared."}]
["Body2:",{"$f":"INDEX(INDIRECT(\"'Rentals.xlsm'!Email_\" & E_Group),(ROW()-ROW(E_Subject)+1))","v":"The attached check list is in a PDF format. You will be able to read it with most web browsers (e.g.: Edge, Chrome, etc.)."}]
["Body3:",{"$f":"INDEX(INDIRECT(\"'Rentals.xlsm'!Email_\" & E_Group),(ROW()-ROW(E_Subject)+1))","v":"Contact me if you have any concerns, questions or need more information."}]
["Body4:",{"$f":"INDEX(INDIRECT(\"'Rentals.xlsm'!Email_\" & E_Group),(ROW()-ROW(E_Subject)+1))","v":0}]
["Sign Off:",{"$f":"INDEX(INDIRECT(\"'Rentals.xlsm'!Email_\" & E_Group),(ROW()-ROW(E_Subject)+1))","v":"Thank you for working with us."}]
["SIGN OFF INFO",{"$f":"COUNTA(A88:A90)&\" Lines\"","v":"3 Lines"}]
["Signature File:","Sig-Jack.jpg"]
["Sig File Location:","\\Images\\Sig"]
["Signed:"]
[]
["CALENDAR CONTROLS",{"$nulls":3},"WEEK BEGIN INFO",{"$f":"\"Lines: \"&COUNTA(E93:E100)","v":"Lines: 8"}]
["Month","Days in Month","Short","Months","Week Beginning:",{"$f":"IF(Week_Month>9,Week_Month,\"0\"&Week_Month)&\"-\"&IF(Week_Day>9,Week_Day,\"0\"&Week_Day)&\"-\"&Week_Year","v":"02-16-2026"}]
[1,31,"Jan","January","File Week Name:",{"$f":"\"(\"&Week_Year&\"-\"&IF(Week_Month>9,Week_Month,\"0\"&Week_Month)&\"-\"&IF(Week_Day>9,Week_Day,\"0\"&Week_Day)&\")\"","v":"(2026-02-16)"}]
[2,{"$f":"IF(Book_CheckIn=\"\",IF(YEAR(TODAY())/4=INT(YEAR(TODAY())/4),29,28),IF(YEAR(Book_CheckIn)/4=INT(YEAR(Book_CheckIn)/4),29,28))","v":29},"Feb","February","Year:",{"$f":"YEAR(TheDate)","v":2026}]
[3,31,"Mar","March","Month:",{"$f":"MONTH(TheDate)","v":2}]
[4,30,"Apr","April","Day:",{"$f":"DAY(TheDate)","v":16}]
[5,31,"May","May","Default Week Beg Date:",{"$f":"TheDate-Week_TheDateDay+1","v":"2026-02-15"}]
[6,30,"Jun","June","Weekday:",{"$f":"WEEKDAY(TheDate)","v":2}]
[7,31,"Jul","July","Legitimate Date:",{"$f":"IF(WeekDefaultBegDate=\"\",\"\",IF(ISERROR(VLOOKUP(WEEKDAY(WeekDefaultBegDate),Weekday,4,0)),\"Not Date\",VLOOKUP(WEEKDAY(WeekDefaultBegDate),Weekday,2,0)))","v":"Sun"}]
[8,31,"Aug","August"]
[9,30,"Sep","September"]
[10,31,"Oct","October"]
[11,30,"Nov","November"]
[12,31,"Dec","December"]
[null,{"$f":"SUM(B94:B105)","v":366},"Days in Year"]
[null,{"$f":"B106/12","v":{"v":30.5,"d":"30.500"}},"Days in Month"]
[]
["WEEK DAYS"]
[1,"Sun","Sunday",1]
[2,"Mon","Monday",2]
[3,"Tue","Tuesday",3]
[4,"Wed","Wednesday",4]
[5,"Thu","Thursday",5]
[6,"Fri","Friday",6]
[7,"Sat","Saturday",7]
[]
["Header"]
["Notes",null,"END OF CONTROL DATA"]

{"sheet":"Menu","index":1,"n_rows":73,"n_cols":14,"rows_kept":73,"merged":[[32,9,32,10],[33,9,33,10],[58,8,58,11]]}
["Copyright:",{"$f":"Copyright","v":"Copyright 2026 Jack Rosellini, Rosebud Systems©, all rights reserved."}]
["Form Updated:",{"$f":"Updated","v":"2026-02-15T14:40:37"}]
["Product:",{"$f":"Product","v":"Rosebud Property Management System"}]
[]
["SHEET INFO",{"$f":"COUNTA(A6:A27)&\" Lines\"","v":"22 Lines"}]
["SheetTitle","Seattle Overview"]
["Sheet Type","Menu"]
["Template Type:","Seattle Overview"]
["Sheet Date:",{"$f":"TEXT(YEAR(TODAY())-2000,\"00\") & TEXT(MONTH(TODAY()),\"00\")& TEXT(DAY(TODAY()),\"00\")","v":"260216"}]
["Menu ButtonName:","Report - See Control Sheet"]
["PDF Filename:"]
["PDF Location:"]
["SheetLoc",690531]
["Lock Type:",22]
["Pass Level:","Report - See Control Sheet"]
["Pass Edit:","Report - See Control Sheet"]
["Edit page:","Report - See Control Sheet"]
["Protect Sections:",0]
["Clear Sections:",0]
["Print Sheet",true]
["Email Sheet:",true]
["Hide Sheet:",false]
["Hide Offset:",1]
["Scroll Lock:",2]
["Help No:","Report - See Control Sheet"]
["Came From:","Rentals.xlsm"]
["From Sheet:","Menu"]
[]
[]
[]
[]
[{"$nulls":7},{"$f":"Prop_Description","v":"Apartment with Panoramic City View Deck"}]
[{"$nulls":7},{"$f":"Prop_Street","v":"810 East Boston Street"},null,{"$f":"Prop_Contact1","v":"Jack Rosellini"},{"$nulls":3},{"$f":"UPPER(SheetTitle)","v":"SEATTLE OVERVIEW"}]
[{"$nulls":7},{"$f":"Prop_CityStateZip","v":"Seattle, WA 98102"},null,{"$f":"Prop_Phone1","v":2066178887},{"$nulls":3},{"$f":"Loc_911","v":"Emergency Call: 911"}]
[]
[{"$nulls":11},"AUTHENTIC MEXICAN - JUST 3 BLOCKS AWAY"]
[{"$nulls":11},"FABULOUS:  Chile en Nogada,  Cochinita Pibil  &  Huarache"]
[{"$nulls":13},"2359 10th Ave. East"]
{"$rows_empty":14}
[{"$nulls":9},"BEST HOMEMADE ITALIAN"]
[{"$nulls":8},"FABULOUS:  LASAGNA,  PASTA  & DESERTS"]
[{"$nulls":9},"1429 - 12th Ave."]
[]
[]
[{"$nulls":8},"REI Store Number 1"]
{"$rows_empty":14}
[{"$nulls":7},{"$f":"Copyright","v":"Copyright 2026 Jack Rosellini, Rosebud Systems©, all rights reserved."},{"$nulls":5},{"$f":"\"Updated: \"&TEXT(Revised,\"mm-dd-yyyy\")","v":"Updated: 02-16-2026"}]

{"sheet":"Favorites","index":2,"n_rows":52,"n_cols":17,"rows_kept":52}
["Copyright:",{"$f":"Copyright","v":"Copyright 2026 Jack Rosellini, Rosebud Systems©, all rights reserved."}]
["Form Updated:",{"$f":"Updated","v":"2026-02-15T14:40:37"}]
["Product:",{"$f":"Product","v":"Rosebud Property Management System"}]
[]
["SHEET INFO",{"$f":"COUNTA(A6:A27)&\" Lines\"","v":"22 Lines"}]
["SheetTitle","Favorites"]
["Sheet Type","Data"]
["Template Type:","Favorites"]
["Sheet Date:",{"$f":"TEXT(YEAR(TODAY())-2000,\"00\") & TEXT(MONTH(TODAY()),\"00\")& TEXT(DAY(TODAY()),\"00\")","v":"260216"}]
["Menu ButtonName:","Report - See Control Sheet"]
["PDF Filename:"]
["PDF Location:"]
["SheetLoc"]
["Lock Type:",22]
["Pass Level:","Report - See Control Sheet"]
["Pass Edit:","Report - See Control Sheet"]
["Edit page:","Report - See Control Sheet"]
["Protect Sections:",0]
["Clear Sections:",0]
["Print Sheet",true]
["Email Sheet:",true]
["Hide Sheet:",false]
["Hide Offset:",1]
["Scroll Lock:",2]
["Help No:","Report - See Control Sheet"]
["Came From:"]
["From Sheet:"]
[]
[]
[]
[]
[{"$nulls":8},{"$f":"Prop_Description","v":"Apartment with Panoramic City View Deck"}]
[{"$nulls":8},{"$f":"Prop_Street","v":"810 East Boston Street"},null,null,{"$f":"Prop_Contact1","v":"Jack Rosellini"},{"$nulls":3},{"$f":"UPPER(SheetTitle)","v":"FAVORITES"}]
[{"$nulls":8},{"$f":"Prop_CityStateZip","v":"Seattle, WA 98102"},null,null,{"$f":"Prop_Phone1","v":2066178887},{"$nulls":3},{"$f":"Loc_911","v":"Emergency Call: 911"}]
[{"$nulls":7},"FAVORITE CLOSE BY EATING ESTABLISHMENTS"]
[]
[{"$nulls":8},"Pagliacci Pizza","2400 10th Ave. E (3 blocks)",null,"D' La Santa","2359 10TH AVE E. (3 blocks)",null,"Cactus","350 Terry Ave N (1.3 miles)"]
[{"$nulls":8},"Delivery or Pick Up  $$",2067261717,null,"$$",2067092222,null,"Eat in or Dine Out $$",2069132250]
[{"$nulls":9},"SUN-THURS - 11am - 11pm\nFRI-SAT - 11am - 12am",null,"MONDAY - Closed\nTUES-THURS - 5:00pm - 9:00pm","FRI & SAT - 11:00am - 10:00pm\nSUNDAY - 11:00am - 9:00pm",null,"SUN 10am - 10pm                                  MON - THURS 11am - 10pm","FRI 11am - 11am\nSAT 10am - 11pm"]
[]
[{"$nulls":9},"Executive Chef, Sabrina Tinsley, has been chosen as one of only 18 participants for the Culinary Enrichment and Innovation Program (CEIP), a collaboration between The Culinary Institute of America and Hormel Foods!"]
[{"$nulls":8},"Osteria la Spiga","1429 - 12th Ave. (1.7 miles)",null,"Canlis","2576 Aurora Ave. N (3.4 miles)",null,"Serafina","2043 Eastlake Ave. E (½ mile)"]
[{"$nulls":8},"$$",2063238881,null,"$$$$$",2062833313,null,"$$$",2063230807]
[{"$nulls":8},"CLOSED MONDAY","SUN - 5pm-9pm\nTUES - THURS - 5pm - 10pm\nFRI - SAT - 5pm - 11pm",null,"CLOSED SUNDAY","MON - THURS - 5:30pm - 9:15pm        FRI & SAT - 5:30pm - 10:00pm",null,"LUNCH\nTUES-FRI 11:30am - 2:30pm","SUN - THURS - 5pm - 10pm\nFRI & SAT - 5pm - 11pm"]
[]
[]
[{"$nulls":8},"Otter Bar & Burger","2379 Eastlake Ave. E (½ mile)",null,"Little Water Cantina","2865 Eastlake Ave. E (¾ mile)",null,"Espresso Vivace","532 Broadway Ave E (1 mile)"]
[{"$nulls":8},"$$",2066507746,null,"$$",2063974940,null,"$$",2068602722]
[{"$nulls":8},"SAT - 11:00am - 11pm                  SUN - 11:00am - 10pm","MON-WED - 3:00pm - 10pm         THUR - 11:00am - 10:00pm          FRI - 11am - 11pm",null,"Large deck with dining","MON - TURS - 11:30am - 11pm\nFRI - SAT - 11:30am - 12pm\nSUN - 11:30am - 10pm",null,"Wi-fi\nQuiet work environment\nKids corner","Open 6am until 11pm daily"]
[]
[]
[{"$nulls":8},{"$f":"Copyright","v":"Copyright 2026 Jack Rosellini, Rosebud Systems©, all rights reserved."},{"$nulls":7},{"$f":"\"Updated: \"&TEXT(Revised,\"mm-dd-yyyy\")","v":"Updated: 02-16-2026"}]

{"sheet":"Getting Around","index":3,"n_rows":54,"n_cols":11,"rows_kept":54,"merged":[[46,9,46,10],[47,9,47,10],[48,9,48,10],[49,9,49,10],[50,9,50,10],[51,9,51,10],[52,9,52,10]]}
["Copyright:",{"$f":"Copyright","v":"Copyright 2026 Jack Rosellini, Rosebud Systems©, all rights reserved."}]
["Form Updated:",{"$f":"Updated","v":"2026-02-15T14:40:37"}]
["Product:",{"$f":"Product","v":"Rosebud Property Management System"}]
[]
["SHEET INFO",{"$f":"COUNTA(A6:A27)&\" Lines\"","v":"22 Lines"}]
["SheetTitle","Getting Around"]
["Sheet Type","Data"]
["Template Type:","Stuff Nearby"]
["Sheet Date:",{"$f":"TEXT(YEAR(TODAY())-2000,\"00\") & TEXT(MONTH(TODAY()),\"00\")& TEXT(DAY(TODAY()),\"00\")","v":"260216"}]
["Menu ButtonName:","Report - See Control Sheet"]
["PDF Filename:"]
["PDF Location:"]
["SheetLoc",690531]
["Lock Type:",2]
["Pass Level:","Report - See Control Sheet"]
["Pass Edit:","Report - See Control Sheet"]
["Edit page:","Report - See Control Sheet"]
["Protect Sections:",0]
["Clear Sections:",0]
["Print Sheet",true]
["Email Sheet:",true]
["Hide Sheet:",false]
["Hide Offset:",1]
["Scroll Lock:"]
["Help No:","Report - See Control Sheet"]
["Came From:"]
["From Sheet:"]
[]
[]
[]
[]
[{"$nulls":7},{"$f":"Prop_Description","v":"Apartment with Panoramic City View Deck"}]
[{"$nulls":7},{"$f":"Prop_Street","v":"810 East Boston Street"},null,{"$f":"Prop_Contact1","v":"Jack Rosellini"},{"$f":"UPPER(SheetTitle)","v":"GETTING AROUND"}]
[{"$nulls":7},{"$f":"Prop_CityStateZip","v":"Seattle, WA 98102"},null,{"$f":"Prop_Phone1","v":2066178887},{"$f":"Loc_911","v":"Emergency Call: 911"}]
[{"$nulls":7},"GETTING AROUND TOWN, PUBLIC TRANSPORTATION & SEA-TAC"]
[{"$nulls":9},"Transit, Light Rail, Autos etc."]
[{"$nulls":7},"Recommended Apps:"]
[{"$nulls":8},"Uber"]
[{"$nulls":8},"Yellow Cab"]
[{"$nulls":8},"King County Metro (Bus service)"]
[{"$nulls":8},"Link Light Rail, Sound Transit"]
[{"$nulls":8},"Sounder Train"]
[{"$nulls":8},"Pay by Phone (street meters paid on your phone)"]
[{"$nulls":8},"ZipCar"]
[]
[{"$nulls":7},"Transportation:",null,"Transit, Light Rail, Autos etc."]
[{"$nulls":7},"Miles","Description","Notes: Check Rates (they may be higher)"]
[{"$nulls":7},0.1,"Metro Bus Stop (runs along 10th Ave. E.)","1 block to northbound, 2 blocks to southbound"]
[{"$nulls":7},1.3,"Link Light Rail, Broadway Station, 140 Broadway E.","Accessed by Metro above"]
[{"$nulls":7},13.5,"Link Light Rail to SeaTac Airport","40 minutes, $3 Adult, $1.50 Youth"]
[{"$nulls":7},"1 to 4","Uber (Ride Share Xcar)","Most core areas ($6-$12, depending on time of day)"]
[{"$nulls":7},16.3,"Uber to the Airport","$40-$60 depending on the time of day"]
[]
[{"$nulls":7},{"$f":"Copyright","v":"Copyright 2026 Jack Rosellini, Rosebud Systems©, all rights reserved."},null,null,{"$f":"\"Updated: \"&TEXT(Revised,\"mm-dd-yyyy\")","v":"Updated: 02-16-2026"}]

{"sheet":"Groceries & Pharmacies","index":4,"n_rows":49,"n_cols":12,"rows_kept":49,"merged":[[47,9,47,10]]}
["Copyright:",{"$f":"Copyright","v":"Copyright 2026 Jack Rosellini, Rosebud Systems©, all rights reserved."}]
["Form Updated:",{"$f":"Updated","v":"2026-02-15T14:40:37"}]
["Product:",{"$f":"Product","v":"Rosebud Property Management System"}]
[]
["SHEET INFO",{"$f":"COUNTA(A6:A27)&\" Lines\"","v":"22 Lines"}]
["SheetTitle","Groceries & Pharmacies"]
["Sheet Type","Data"]
["Template Type:","Groceries & Pharmacies"]
["Sheet Date:",{"$f":"TEXT(YEAR(TODAY())-2000,\"00\") & TEXT(MONTH(TODAY()),\"00\")& TEXT(DAY(TODAY()),\"00\")","v":"260216"}]
["Menu ButtonName:","Report - See Control Sheet"]
["PDF Filename:"]
["PDF Location:"]
["SheetLoc",690531]
["Lock Type:",2]
["Pass Level:","Report - See Control Sheet"]
["Pass Edit:","Report - See Control Sheet"]
["Edit page:","Report - See Control Sheet"]
["Protect Sections:",0]
["Clear Sections:",0]
["Print Sheet",true]
["Email Sheet:",true]
["Hide Sheet:",false]
["Hide Offset:",1]
["Scroll Lock:"]
["Help No:","Report - See Control Sheet"]
["Came From:"]
["From Sheet:"]
[]
[]
[]
[]
[{"$nulls":7},{"$f":"Prop_Description","v":"Apartment with Panoramic City View Deck"}]
[{"$nulls":7},{"$f":"Prop_Street","v":"810 East Boston Street"},null,{"$f":"Prop_Contact1","v":"Jack Rosellini"},null,{"$f":"UPPER(SheetTitle)","v":"GROCERIES & PHARMACIES"}]
[{"$nulls":7},{"$f":"Prop_CityStateZip","v":"Seattle, WA 98102"},null,{"$f":"Prop_Phone1","v":2066178887},null,{"$f":"Loc_911","v":"Emergency Call: 911"}]
[{"$nulls":7},"Grocery & Drug Stores"]
[{"$nulls":8},"POI's SORTED BY DISTANCE"]
[{"$nulls":7},"Miles","Name","Address","Phone","Notes"]
[{"$nulls":7},1.1,"QFC *","417 Broadway East",2063286920,"Grocery"]
[{"$nulls":7},1.1,"Walgreens","500 - 15th Ave. East",2067094569,"Pharmacy"]
[{"$nulls":7},1.3,"Rite Aid *","201 Broadway East",2063247111,"Pharmacy"]
[{"$nulls":7},1.3,"Safeway","1410 East John Street",2063234988,"Grocery"]
[{"$nulls":7},1.6,"Whole Food","2210 Westlake Ave.",2066219700,"Grocery"]
[{"$nulls":7},1.7,"Bartell Drugs *","1407 Broadway",2067263491,"Pharmacy"]
[{"$nulls":7},1.7,"Trader Joe's","1700 East Madison",2063227268,"Specialty Foods"]
[{"$nulls":7},2.5,"Pike Place Market *","1st & Pike",2066827453,"Farmers open air market"]
[{"$nulls":7},2.5,"Pike Place Fish Market *","1st & Pike",2066827181,"Fish throwing market"]
[{"$nulls":7},5.1,"Costco, Costco Gas, Costco Car Wash","4401 4th Ave S",2066223136,"Store #1, with Hearing, Eyeglasses"]
[{"$nulls":7},"Notes:","* Metro Bus Access"]
[{"$nulls":7},{"$f":"Copyright","v":"Copyright 2026 Jack Rosellini, Rosebud Systems©, all rights reserved."},{"$nulls":3},{"$f":"\"Updated: \"&TEXT(Revised,\"mm-dd-yyyy\")","v":"Updated: 02-16-2026"}]

{"sheet":"Fun Stuff","index":5,"n_rows":59,"n_cols":12,"rows_kept":59,"merged":[[27,8,28,10],[27,11,28,11]]}
["Copyright:",{"$f":"Copyright","v":"Copyright 2026 Jack Rosellini, Rosebud Systems©, all rights reserved."}]
["Form Updated:",{"$f":"Updated","v":"2026-02-15T14:40:37"}]
["Product:",{"$f":"Product","v":"Rosebud Property Management System"}]
[]
["SHEET INFO",{"$f":"COUNTA(A6:A27)&\" Lines\"","v":"22 Lines"}]
["SheetTitle","Fun Stuff"]
["Sheet Type","Data"]
["Template Type:","Stuff Nearby"]
["Sheet Date:",{"$f":"TEXT(YEAR(TODAY())-2000,\"00\") & TEXT(MONTH(TODAY()),\"00\")& TEXT(DAY(TODAY()),\"00\")","v":"260216"}]
["Menu ButtonName:","Report - See Control Sheet"]
["PDF Filename:"]
["PDF Location:"]
["SheetLoc",690531]
["Lock Type:",2]
["Pass Level:","Report - See Control Sheet"]
["Pass Edit:","Report - See Control Sheet"]
["Edit page:","Report - See Control Sheet"]
["Protect Sections:",0]
["Clear Sections:",0]
["Print Sheet",true]
["Email Sheet:",true]
["Hide Sheet:",false]
["Hide Offset:",1]
["Scroll Lock:"]
["Help No:","Report - See Control Sheet"]
["Came From:"]
["From Sheet:"]
[]
[]
[]
[]
[{"$nulls":7},{"$f":"Prop_Description","v":"Apartment with Panoramic City View Deck"}]
[{"$nulls":7},{"$f":"Prop_Street","v":"810 East Boston Street"},null,null,{"$f":"Prop_Contact1","v":"Jack Rosellini"},{"$f":"UPPER(SheetTitle)","v":"FUN STUFF"}]
[{"$nulls":7},{"$f":"Prop_CityStateZip","v":"Seattle, WA 98102"},null,null,{"$f":"Prop_Phone1","v":2066178887},{"$f":"Loc_911","v":"Emergency Call: 911"}]
[{"$nulls":7},"FUN STUFF TO DO"]
[{"$nulls":8},"Can't do it all in a week or two, but fun trying"]
[{"$nulls":7},"Miles","Name","Address","Phone","Notes"]
[{"$nulls":7},"FREE STUFF"]
[{"$nulls":7},10.6,"Alki Beach on Puget Sound","1702 Alki Ave. SW","(206) 684-4075","Fabulous salt water beach"]
[{"$nulls":7},1.8,"Center for Wooden Boats","1010 Valley Street","(206) 382-2628","Lake Union walk, action nearby"]
[{"$nulls":7},6.2,"Discovery Park","3801 Discovery Park Blvd","(206) 386-4236","Seattle’s environmental learning centers"]
[{"$nulls":7},6.5,"Elliott Bay Tail","Trailhead @ Alaskan Way & Marion Street",null,"A paved 10 miled path along Elliott Bay shoreline, open to walkers, runners and bike riders. Views to the west over the water. Relatively flat only 20' change."]
[{"$nulls":7},3.1,"Green Lake","7201 E Green Lake Dr. N",null,"2.8 mile flat walk, bike, skateboard, non-motor boats"]
[{"$nulls":7},6.5,"Myrtle Edwards Park","3130 Alaskan Way W",null,"Myrtle Edwards Park at Broad St. or Elliott Bay Marina at Smith Cove Park and Entry point to Elliott Bay Trail."]
[{"$nulls":7},2.8,"Olympic Sculpture Park","2901 Western Avenue",null,"Fun Art & Gardens for all the family"]
[{"$nulls":7},2.6,"Pike Place Market","1st & Pike",null,"17 acres of great time & food, established in 1907."]
[{"$nulls":7},2.5,"Washington Park Arboretum","Azalea Way",null,"Fabulous 230 acre park, with serene walks and more than 40,000 plants from around the world. Seven major gardens and trails with beautiful Japanese gardens."]
[{"$nulls":7},2.5,"Waterfront Walk","Alaskan Way, Pier 70",null,"Start of a walk Southbound. A fun park and walk along the waterfront."]
[]
[{"$nulls":7},"PAY A FEE"]
[{"$nulls":7},2.9,"Electric Boat Company","2046 Westlake Ave N","(206) 223-7476","You drive it around the lake! What fun!"]
[{"$nulls":7},1.8,"Kenmore Air","950 Westlake N.","(866) 435-9524","Seaplane rides, Fabulous. Can't say enough about it, especially on a clear day (winter or summer)."]
[{"$nulls":7},3,"Seattle Aquarium","1483 Alaskan Way, Pier 59","(206) 386-4300","On the waterfront at pier 59. The 9th largest in the country."]
[{"$nulls":7},2,"Seattle Japanese Garden","1075 Lake Washington Blvd E.","(206) 684-4725","Just a 25 minute beautiful walk from the UW Light Rail Station."]
[{"$nulls":7},1.8,"Seattle Space Needle","400 Broad Street","(800) 937-9582","Incredible views, incredible décor, glass floors, awesome."]
[{"$nulls":7},3.3,"Washington State Ferry","801 Alaskan Way Pier 52","(206) 464-6400","Great morning outing! Take the ferry to Bainbridge Island and the town of Winslow. Fun shops and restaurants. Largest ferry system in the USA."]
[{"$nulls":7},4.2,"Woodland Park & Zoo","5500 Phinney Ave. N.","(206) 548.2500","Large 188 acre park with a 92 acre zoo. Over 7,000 trees and 300 animal species. Don't miss the summer BECU Zoo Tunes (concerts in the park). Founded in 1899."]
[]
[{"$nulls":7},{"$f":"Copyright","v":"Copyright 2026 Jack Rosellini, Rosebud Systems©, all rights reserved."},{"$nulls":3},{"$f":"\"Updated: \"&TEXT(Revised,\"mm-dd-yyyy\")","v":"Updated: 02-16-2026"}]

{"sheet":"Restaurants","index":6,"n_rows":68,"n_cols":13,"rows_kept":68}
["Copyright:",{"$f":"Copyright","v":"Copyright 2026 Jack Rosellini, Rosebud Systems©, all rights reserved."}]
["Form Updated:",{"$f":"Updated","v":"2026-02-15T14:40:37"}]
["Product:",{"$f":"Product","v":"Rosebud Property Management System"}]
[]
["SHEET INFO",{"$f":"COUNTA(A6:A27)&\" Lines\"","v":"22 Lines"}]
["SheetTitle","Restaurants"]
["Sheet Type","Data"]
["Template Type:","Stuff Nearby"]
["Sheet Date:",{"$f":"TEXT(YEAR(TODAY())-2000,\"00\") & TEXT(MONTH(TODAY()),\"00\")& TEXT(DAY(TODAY()),\"00\")","v":"260216"}]
["Menu ButtonName:","Report - See Control Sheet"]
["PDF Filename:"]
["PDF Location:"]
["SheetLoc",690531]
["Lock Type:",2]
["Pass Level:","Report - See Control Sheet"]
["Pass Edit:","Report - See Control Sheet"]
["Edit page:","Report - See Control Sheet"]
["Protect Sections:",0]
["Clear Sections:",0]
["Print Sheet",true]
["Email Sheet:",true]
["Hide Sheet:",false]
["Hide Offset:",1]
["Scroll Lock:"]
["Help No:","Report - See Control Sheet"]
["Came From:"]
["From Sheet:"]
[]
[]
[]
[]
[{"$nulls":7},"APARTMENT WITH PANORAMIC CITY VIEW DECK"]
[{"$nulls":7},"810 EAST BOSTON STREET",null,null,"Jack Rosellini",null,{"$f":"UPPER(SheetTitle)","v":"RESTAURANTS"}]
[{"$nulls":7},"Seattle, WA 98102",null,null,2066178888,null,{"$f":"Loc_911","v":"Emergency Call: 911"}]
[{"$nulls":7},"Restaurants that we frequent. . .Close & Great Experience"]
[{"$nulls":8},"POI's SORTED BY DISTANCE"]
[{"$nulls":7},"Miles","Name","Type","Address","Phone","Notes, Type of Food & Ratings"]
[{"$nulls":7},0.3,"Pagliacci Pizza","Pizza","2400 - 10th Ave. East",2067261717,"3 block walk or delivered, Seattle's most popular"]
[{"$nulls":7},0.5,"Serafina","Italian","2043 Eastlake Ave. East",2063230807,"Not a bad walk down the hill"]
[{"$nulls":7},0.6,"D 'La Santa","Fresh Mexican","2359 10th Ave, East",2067092222,"Very Good neighborhood spot, $$"]
[{"$nulls":7},0.7,"Otter Bar & Burger","Burgers & Bar","2379 Eastlake Ave. East",2066507746,"Nice neighborhood spot, $$"]
[{"$nulls":7},0.7,"Little Water Cantina","Fresh Mexican","2865 Eastlake Ave. East",2063974940,"Nice neighborhood spot, $-$$"]
[{"$nulls":7},0.8,"Siam Thai Cuisine","Thai","1629 Eastlake Ave. East",2063226174,"Moderate & good, $$"]
[{"$nulls":7},0.9,"Altura","NW Fresh","622 Broadway East",2064026749,"Very good, $$$$"]
[{"$nulls":7},{"v":1,"d":"1.0"},"Espresso Vivace, Brix","Espresso","532 Broadway East",2068602722,"Our favorite coffee shop (on bus line)"]
[{"$nulls":7},{"v":1,"d":"1.0"},"Volunteer Park Café","Good Local Food","1501 - 17th Ave. East",2063283155,"You can walk (we do during summer), $$-$$$"]
[{"$nulls":7},1.2,"Chandler's Crabhouse","NW Fish & Crab","901 Fairview Ave. North",2062232722,"Fabulous seafood, $$$-$$$$"]
[{"$nulls":7},1.2,"Duke's Chowder House","NW Fish & Chowder","901 Fairview Ave. North",2063829963,"Good food & casual, $$"]
[{"$nulls":7},1.2,"Rione XIII, Ethan Stowell","Italian","410 - 15th Ave, East",2068382878,"Excellent, $$"]
[{"$nulls":7},1.3,"Cactus","Fresh SW Dinning","350 Terry Ave. North",2069132250,"South Lake Union, $$"]
[{"$nulls":7},1.4,"Daniel's Broiler","Steaks & Seafood","809 Fairview Place North",2066218262,"Excellent Broiler, $$$$"]
[{"$nulls":7},1.4,"Flying Fish","NW Fish","300 Westlake Ave. North",2067288595,"Excellent Fish Dishes $$$$"]
[{"$nulls":7},1.7,"Starbucks, Pike Street Roastery","Coffee & Tea","1124 Pike Street",2066240173,"Roastery, worth the visit"]
[{"$nulls":7},1.7,"Osteria La Spiga","Our favorite Italian","1429 - 12th Ave.",2063238881,"Metro Bus & about 4 block walk), $$-$$$"]
[{"$nulls":7},1.7,"Taylor Shellfish Farms","Best Fresh Seafood","1521 Melrose Ave.",2065014321,"Market, take out, eat there, Reasonable"]
[{"$nulls":7},1.7,"Tavolata, Capitol Hill","Italian","2323 - 2nd Ave.",2068388008,"Ethan Stowell fine dining, $$$"]
[{"$nulls":7},1.8,"Seattle Space Needle","NW Dining","400 Broad Street",8009379582,"Incredible Views, $$$-$$$$"]
[{"$nulls":7},1.8,"Skillet Diner","American Diner","1400 East Union St.",2065122201,"Metro Bus & about 4 block walk, $$-$$$"]
[{"$nulls":7},1.9,"Via Tribunali","Pizza Excellence","913 East Pike",2063229234,"Top 10 Pizza (Just off the Metro Bus Line), $$-$$$"]
[{"$nulls":7},2.2,"Wild Ginger","Asian","1401 - 3rd Ave.",2066234450,"Great Asian food, $$$-$$$$"]
[{"$nulls":7},3.2,"Starbucks, Pike Place Market","Coffee Shop","1912 Pike Place",2064488762,"Original Store #1"]
[{"$nulls":7},3.4,"Canlis","NW Excellence","2576 Aurora Ave. North",2062833313,"Favorite  atmosphere, pricy, top 10 in city $$$$"]
[{"$nulls":7},3.9,"Il Terrazzo Carmine","Italian Excellence","411 - 1st Ave. South",2064677797,"Favorite pricy Italian, $$$$"]
[{"$nulls":7},2.5,"Von's 1000 Spirits","NW American","1225 - 1st Ave.",2066218667,"Pizza, Burgers, Pasta, and much more $$"]
[{"$nulls":7},15.5,"Sharp's Roadhouse","NW American","18427 International Blvd, SeaTac","(206) 241-5744","Sister to Von's. Excellent $$ (Minutes from Airport)"]
[]
[{"$nulls":8},"Some of these restaurants may have closed due to Covid-19. Please call before you go there."]
[{"$nulls":7},{"$f":"Copyright","v":"Copyright 2026 Jack Rosellini, Rosebud Systems©, all rights reserved."},{"$nulls":4},{"$f":"\"Updated: \"&TEXT(Revised,\"mm-dd-yyyy\")","v":"Updated: 02-16-2026"}]

{"sheet":"Neighborhood Farmers Markets","index":7,"n_rows":46,"n_cols":11,"rows_kept":46}
["Copyright:",{"$f":"Copyright","v":"Copyright 2026 Jack Rosellini, Rosebud Systems©, all rights reserved."}]
["Form Updated:",{"$f":"Updated","v":"2026-02-15T14:40:37"}]
["Product:",{"$f":"Product","v":"Rosebud Property Management System"}]
[]
["SHEET INFO",{"$f":"COUNTA(A6:A27)&\" Lines\"","v":"22 Lines"}]
["SheetTitle","Neighborhood Farmers Markets"]
["Sheet Type","Data"]
["Template Type:","Neighborhood Farmers Markets"]
["Sheet Date:",{"$f":"TEXT(YEAR(TODAY())-2000,\"00\") & TEXT(MONTH(TODAY()),\"00\")& TEXT(DAY(TODAY()),\"00\")","v":"260216"}]
["Menu ButtonName:","Report - See Control Sheet"]
["PDF Filename:"]
["PDF Location:"]
["SheetLoc",690531]
["Lock Type:",2]
["Pass Level:","Report - See Control Sheet"]
["Pass Edit:","Report - See Control Sheet"]
["Edit page:","Report - See Control Sheet"]
["Protect Sections:",0]
["Clear Sections:",0]
["Print Sheet",true]
["Email Sheet:",true]
["Hide Sheet:",false]
["Hide Offset:",1]
["Scroll Lock:"]
["Help No:","Report - See Control Sheet"]
["Came From:"]
["From Sheet:"]
[]
[]
[]
[]
[{"$nulls":7},{"$f":"Prop_Description","v":"Apartment with Panoramic City View Deck"}]
[{"$nulls":7},{"$f":"Prop_Street","v":"810 East Boston Street"},null,{"$f":"Prop_Contact1","v":"Jack Rosellini"},{"$f":"UPPER(SheetTitle)","v":"NEIGHBORHOOD FARMERS MARKETS"}]
[{"$nulls":7},{"$f":"Prop_CityStateZip","v":"Seattle, WA 98102"},null,{"$f":"Prop_Phone1","v":2066178887},{"$f":"Loc_911","v":"Emergency Call: 911"}]
[{"$nulls":7},"GETTING AROUND TOWN, PUBLIC TRANSPORTATION & SEA-TAC"]
[{"$nulls":8},"POI's SORTED BY DISTANCE","Grocery & Drug Stores"]
[{"$nulls":7},"Miles","Name","Address","Notes"]
[{"$nulls":7},1.2,"Capitol Hill - Broadway *","Broadway Ave E and E Pine Street"]
[{"$nulls":7},2.4,"U-District *","University Way NE between 50th & 52nd"]
[{"$nulls":7},4.4,"Phinney","North 67th St. & Phinney Ave N."]
[{"$nulls":7},{"v":5,"d":"5.0"},"Magnolia","33rd Ave W & W McGraw Street"]
[{"$nulls":7},6.2,"Lake City","NE 125th & 28th NE (next to the Library)"]
[{"$nulls":7},6.8,"Columbia City","37th Ave S & S Edmunds St. (Rainier Ave S)"]
[{"$nulls":7},8.5,"West Seattle","California Ave SW & SW Alaska"]
[{"$nulls":7},"Notes:","* Metro Bus Access"]
[{"$nulls":7},{"$f":"Copyright","v":"Copyright 2026 Jack Rosellini, Rosebud Systems©, all rights reserved."},null,null,{"$f":"\"Updated: \"&TEXT(Revised,\"mm-dd-yyyy\")","v":"Updated: 02-16-2026"}]

{"sheet":"Museums & Galleries","index":8,"n_rows":47,"n_cols":12,"rows_kept":47,"merged":[[45,9,45,10]]}
["Copyright:",{"$f":"Copyright","v":"Copyright 2026 Jack Rosellini, Rosebud Systems©, all rights reserved."}]
["Form Updated:",{"$f":"Updated","v":"2026-02-15T14:40:37"}]
["Product:",{"$f":"Product","v":"Rosebud Property Management System"}]
[]
["SHEET INFO",{"$f":"COUNTA(A6:A27)&\" Lines\"","v":"22 Lines"}]
["SheetTitle","Museums & Galleries"]
["Sheet Type","Data"]
["Template Type:","Museums & Galleries"]
["Sheet Date:",{"$f":"TEXT(YEAR(TODAY())-2000,\"00\") & TEXT(MONTH(TODAY()),\"00\")& TEXT(DAY(TODAY()),\"00\")","v":"260216"}]
["Menu ButtonName:","Report - See Control Sheet"]
["PDF Filename:"]
["PDF Location:"]
["SheetLoc",690531]
["Lock Type:",2]
["Pass Level:","Report - See Control Sheet"]
["Pass Edit:","Report - See Control Sheet"]
["Edit page:","Report - See Control Sheet"]
["Protect Sections:",0]
["Clear Sections:",0]
["Print Sheet",true]
["Email Sheet:",true]
["Hide Sheet:",false]
["Hide Offset:",1]
["Scroll Lock:"]
["Help No:","Report - See Control Sheet"]
["Came From:"]
["From Sheet:"]
[]
[]
[]
[]
[{"$nulls":7},{"$f":"Prop_Description","v":"Apartment with Panoramic City View Deck"}]
[{"$nulls":7},{"$f":"Prop_Street","v":"810 East Boston Street"},null,{"$f":"Prop_Contact1","v":"Jack Rosellini"},null,{"$f":"UPPER(SheetTitle)","v":"MUSEUMS & GALLERIES"}]
[{"$nulls":7},{"$f":"Prop_CityStateZip","v":"Seattle, WA 98102"},null,{"$f":"Prop_Phone1","v":2066178887},null,{"$f":"Loc_911","v":"Emergency Call: 911"}]
[{"$nulls":7},"GETTING AROUND TOWN, PUBLIC TRANSPORTATION & SEA-TAC"]
[{"$nulls":8},"POI's SORTED BY DISTANCE","Grocery & Drug Stores"]
[{"$nulls":7},"Miles","Name","Address","Phone","Notes"]
[{"$nulls":7},1.8,"Center for Wooden Boats","1010 Valley Street",2063822628,"Great walk to South Lake Union, Interesting"]
[{"$nulls":7},{"v":2,"d":"2.0"},"MOHI (Museum of History & Industry)","400 Terry Ave. North",2063241126,"Great walk to South Lake Union, Seattle History"]
[{"$nulls":7},2.4,"Museum of Pop Culture","325 5th Ave. North",2067702700]
[{"$nulls":7},2.8,"Olympic Sculpture Park","2901 Western Avenue",2066543100,"Great walk along the waterfront"]
[{"$nulls":7},2.6,"Pacific Science Center","200 - 2nd Ave. North",2064332201,"Always interesting, call for current exhibits"]
[{"$nulls":7},{"v":3,"d":"3.0"},"Seattle Aquarium","1483 Alaskan Way, Pier 59",2063864300,"Great walk along the waterfront"]
[{"$nulls":7},{"v":2,"d":"2.0"},"Seattle Art Museum *","1300 1st Ave.",2066543100,"Metro Bus to downtown, stops in front of SAM"]
[{"$nulls":7},{"v":1,"d":"1.0"},"Seattle Asian Art Museum","1400 East Prospect Street",2066543100]
[{"$nulls":7},"Notes:","* Metro Bus Access"]
[{"$nulls":7},{"$f":"Copyright","v":"Copyright 2026 Jack Rosellini, Rosebud Systems©, all rights reserved."},{"$nulls":3},{"$f":"\"Updated: \"&TEXT(Revised,\"mm-dd-yyyy\")","v":"Updated: 02-16-2026"}]

{"sheet":"Shopping & Business","index":9,"n_rows":52,"n_cols":12,"rows_kept":52,"merged":[[50,9,50,10]]}
["Copyright:",{"$f":"Copyright","v":"Copyright 2026 Jack Rosellini, Rosebud Systems©, all rights reserved."}]
["Form Updated:",{"$f":"Updated","v":"2026-02-15T14:40:37"}]
["Product:",{"$f":"Product","v":"Rosebud Property Management System"}]
[]
["SHEET INFO",{"$f":"COUNTA(A6:A27)&\" Lines\"","v":"22 Lines"}]
["SheetTitle","Shopping & Business"]
["Sheet Type","Data"]
["Template Type:","Shopping & Business"]
["Sheet Date:",{"$f":"TEXT(YEAR(TODAY())-2000,\"00\") & TEXT(MONTH(TODAY()),\"00\")& TEXT(DAY(TODAY()),\"00\")","v":"260216"}]
["Menu ButtonName:","Report - See Control Sheet"]
["PDF Filename:"]
["PDF Location:"]
["SheetLoc",690531]
["Lock Type:",2]
["Pass Level:","Report - See Control Sheet"]
["Pass Edit:","Report - See Control Sheet"]
["Edit page:","Report - See Control Sheet"]
["Protect Sections:",0]
["Clear Sections:",0]
["Print Sheet",true]
["Email Sheet:",true]
["Hide Sheet:",false]
["Hide Offset:",1]
["Scroll Lock:"]
["Help No:","Report - See Control Sheet"]
["Came From:"]
["From Sheet:"]
[]
[]
[]
[]
[{"$nulls":7},{"$f":"Prop_Description","v":"Apartment with Panoramic City View Deck"}]
[{"$nulls":7},{"$f":"Prop_Street","v":"810 East Boston Street"},null,{"$f":"Prop_Contact1","v":"Jack Rosellini"},null,{"$f":"UPPER(SheetTitle)","v":"SHOPPING & BUSINESS"}]
[{"$nulls":7},{"$f":"Prop_CityStateZip","v":"Seattle, WA 98102"},null,{"$f":"Prop_Phone1","v":2066178887},null,{"$f":"Loc_911","v":"Emergency Call: 911"}]
[{"$nulls":7},"GETTING AROUND TOWN, PUBLIC TRANSPORTATION & SEA-TAC"]
[{"$nulls":8},"POI's SORTED BY DISTANCE","Grocery & Drug Stores"]
[{"$nulls":7},"Miles","Name","Address","Phone","Notes"]
[{"$nulls":7},3.2,"Amazon Corporate *","410 Terry Ave. North",2062661000]
[{"$nulls":7},2.6,"Columbia Center **","710 5th Ave.",2063865151]
[{"$nulls":7},{"v":2,"d":"2.0"},"Macy's **","300 Pine Street",2065066000]
[{"$nulls":7},{"v":9,"d":"9.0"},"Microsoft Campus","3720 - 159th Ave. NE, Redmond"]
[{"$nulls":7},{"v":2,"d":"2.0"},"Nordstrom **","500 Pine St.",2066282111,"Store #1"]
[{"$nulls":7},4.6,"Northgate Mall ***","401 NE Northgate Way",2063624778,"First mall in US, opened 1950"]
[{"$nulls":7},1.9,"Pacific Place **","600 Pine Street",2064052655,"Downtown mall with movie theater"]
[{"$nulls":7},1.3,"REI Flagship","222 Yale Ave. North",2062231944,"Store #1"]
[{"$nulls":7},1.6,"South Lake Union, Visitor Center","2200 Westlake Ave.",2062629091]
[{"$nulls":7},{"v":2,"d":"2.0"},"University Village","2623 NE University Village Street",2065230622]
[]
[{"$nulls":7},"Notes:","* Metro Bus Access"]
[{"$nulls":8},"** Metro Bus & Link Light Rail Access"]
[{"$nulls":8},"*** Metro Bus & (Light Rail by summer 2021)"]
[{"$nulls":7},{"$f":"Copyright","v":"Copyright 2026 Jack Rosellini, Rosebud Systems©, all rights reserved."},{"$nulls":3},{"$f":"\"Updated: \"&TEXT(Revised,\"mm-dd-yyyy\")","v":"Updated: 02-16-2026"}]

{"sheet":"Stadiums & Venues","index":10,"n_rows":54,"n_cols":12,"rows_kept":54,"merged":[[52,9,52,10]]}
["Copyright:",{"$f":"Copyright","v":"Copyright 2026 Jack Rosellini, Rosebud Systems©, all rights reserved."}]
["Form Updated:",{"$f":"Updated","v":"2026-02-15T14:40:37"}]
["Product:",{"$f":"Product","v":"Rosebud Property Management System"}]
[]
["SHEET INFO",{"$f":"COUNTA(A6:A27)&\" Lines\"","v":"22 Lines"}]
["SheetTitle","Stadiums & Venues"]
["Sheet Type","Data"]
["Template Type:","Stadiums & Venues"]
["Sheet Date:",{"$f":"TEXT(YEAR(TODAY())-2000,\"00\") & TEXT(MONTH(TODAY()),\"00\")& TEXT(DAY(TODAY()),\"00\")","v":"260216"}]
["Menu ButtonName:","Report - See Control Sheet"]
["PDF Filename:"]
["PDF Location:"]
["SheetLoc",690531]
["Lock Type:",2]
["Pass Level:","Report - See Control Sheet"]
["Pass Edit:","Report - See Control Sheet"]
["Edit page:","Report - See Control Sheet"]
["Protect Sections:",0]
["Clear Sections:",0]
["Print Sheet",true]
["Email Sheet:",true]
["Hide Sheet:",false]
["Hide Offset:",1]
["Scroll Lock:"]
["Help No:","Report - See Control Sheet"]
["Came From:"]
["From Sheet:"]
[]
[]
[]
[]
[{"$nulls":7},{"$f":"Prop_Description","v":"Apartment with Panoramic City View Deck"}]
[{"$nulls":7},{"$f":"Prop_Street","v":"810 East Boston Street"},null,{"$f":"Prop_Contact1","v":"Jack Rosellini"},null,{"$f":"UPPER(SheetTitle)","v":"STADIUMS & VENUES"}]
[{"$nulls":7},{"$f":"Prop_CityStateZip","v":"Seattle, WA 98102"},null,{"$f":"Prop_Phone1","v":2066178887},null,{"$f":"Loc_911","v":"Emergency Call: 911"}]
[{"$nulls":7},"GETTING AROUND TOWN, PUBLIC TRANSPORTATION & SEA-TAC"]
[{"$nulls":8},"POI's SORTED BY DISTANCE","Grocery & Drug Stores"]
[{"$nulls":7},"Miles","Name","Address","Phone","Notes"]
[{"$nulls":7},2.1,"5th Avenue Theater *","1308 5th Ave.",2066251900,"Performing Arts"]
[{"$nulls":7},{"v":2,"d":"2.0"},"Act Theater *","700 Union",2062927660,"Performing Arts"]
[{"$nulls":7},2.3,"Benaroya Hall *","200 University Street",2062154800,"Seattle Symphony"]
[{"$nulls":7},5.3,"Century Link Field, Seahawks **","800 Occidental Ave. South","888-NFL-HAWK","Seattle Seahawks Football"]
[{"$nulls":7},5.3,"Century Link Field, Sounders **","800 Occidental Ave. South","877-MLS-GOAL","Seattle Sounders Soccer"]
[{"$nulls":7},5.3,"Century Link Field **","800 Occidental Ave. South",2063817848,"Events"]
[{"$nulls":7},{"v":3,"d":"3.0"},"Safeco Field **","1250 1st Ave. South",2063464000,"Seattle Mariners Baseball"]
[{"$nulls":7},1.9,"Seattle Children's Theater","201 Thomas Street",2064430807,"Children's Plays"]
[{"$nulls":7},1.6,"Seattle Opera House","600 - 5th Ave.",2066847200,"Seattle Opera"]
[{"$nulls":7},1.8,"Seattle Reparatory Theater","155 Mercer Street",2064432210,"Performing Arts"]
[{"$nulls":7},3.3,"UW Huskies Stadium **","3800 Montlake Blvd.",2065432246,"Washington Huskies Football"]
[{"$nulls":7},{"v":2,"d":"2.0"},"Paramount Theater","911 Pine Street",2066821414,"Performing Arts"]
[]
[{"$nulls":7},"Notes:","* Metro Bus Access"]
[{"$nulls":8},"** Metro Bus to Light Rail Direct Access"]
[{"$nulls":8},"In some cases there will be a several block walk in addition to the transit or a transit transfer"]
[{"$nulls":7},{"$f":"Copyright","v":"Copyright 2026 Jack Rosellini, Rosebud Systems©, all rights reserved."},{"$nulls":3},{"$f":"\"Updated: \"&TEXT(Revised,\"mm-dd-yyyy\")","v":"Updated: 02-16-2026"}]

{"sheet":"Medical & Research Centers","index":11,"n_rows":54,"n_cols":12,"rows_kept":54,"merged":[[52,9,52,10]]}
["Copyright:",{"$f":"Copyright","v":"Copyright 2026 Jack Rosellini, Rosebud Systems©, all rights reserved."}]
["Form Updated:",{"$f":"Updated","v":"2026-02-15T14:40:37"}]
["Product:",{"$f":"Product","v":"Rosebud Property Management System"}]
[]
["SHEET INFO",{"$f":"COUNTA(A6:A27)&\" Lines\"","v":"22 Lines"}]
["SheetTitle","Medical & Research Centers"]
["Sheet Type","Data"]
["Template Type:","Stadiums & Venues"]
["Sheet Date:","Medical & Research Centers"]
["Menu ButtonName:","Report - See Control Sheet"]
["PDF Filename:"]
["PDF Location:"]
["SheetLoc",690531]
["Lock Type:",2]
["Pass Level:","Report - See Control Sheet"]
["Pass Edit:","Report - See Control Sheet"]
["Edit page:","Report - See Control Sheet"]
["Protect Sections:",0]
["Clear Sections:",0]
["Print Sheet",true]
["Email Sheet:",true]
["Hide Sheet:",false]
["Hide Offset:",1]
["Scroll Lock:"]
["Help No:","Report - See Control Sheet"]
["Came From:"]
["From Sheet:"]
[]
[]
[]
[]
[{"$nulls":7},{"$f":"Prop_Description","v":"Apartment with Panoramic City View Deck"}]
[{"$nulls":7},{"$f":"Prop_Street","v":"810 East Boston Street"},null,{"$f":"Prop_Contact1","v":"Jack Rosellini"},null,{"$f":"UPPER(SheetTitle)","v":"MEDICAL & RESEARCH CENTERS"}]
[{"$nulls":7},{"$f":"Prop_CityStateZip","v":"Seattle, WA 98102"},null,{"$f":"Prop_Phone1","v":2066178887},null,{"$f":"Loc_911","v":"Emergency Call: 911"}]
[{"$nulls":7},"GETTING AROUND TOWN, PUBLIC TRANSPORTATION & SEA-TAC"]
[{"$nulls":8},"POI's SORTED BY DISTANCE","Grocery & Drug Stores"]
[{"$nulls":7},"Miles","Name","Address","Phone","Notes"]
[{"$nulls":7},3.7,"Bastyr University","3670 Stone Way North",2064622751]
[{"$nulls":7},{"v":1,"d":"1.0"},"Cancer Care Alliance","825 Eastlake Ave. East",2065570555]
[{"$nulls":7},1.2,"Fred Hutchinson Cancer Research Center","100 Fairview Ave. North",2066675000]
[{"$nulls":7},2.4,"Harborview, UW Medicine","325 - 9th Ave.",2067443000]
[{"$nulls":7},2.1,"NW Kidney Center","700 Broadway",2062922771]
[{"$nulls":7},1.7,"Seattle Central Community College","1701 Broadway Ave.",2069343800]
[{"$nulls":7},2.4,"Seattle Children's Hospital","4800 Sand Point Way NE",2069872000]
[{"$nulls":7},2.5,"Seattle Pacific University","3307 3rd Ave. West",2062812000]
[{"$nulls":7},{"v":2,"d":"2.0"},"Seattle University","901 - 12th Ave.",2062966000]
[{"$nulls":7},11.5,"South Seattle Community College","6000 16th Avenue SW",2069345300]
[{"$nulls":7},2.1,"Swedish Hospital, 1st Hill","747 Broadway",2063866000]
[{"$nulls":7},2.3,"Swedish Hospital, Cherry Hill","500 - 17th Ave.",2063202000]
[{"$nulls":7},1.7,"University of Washington Campus","1410 NE Campus Parkway",2065432100]
[{"$nulls":7},3.5,"University of Washington Medical Center*","1959 NE Pacific Street",2065983300]
[]
[{"$nulls":7},"Notes:","* Link Light Rail goes between Broadway Station and UW Station (across the street from Medical Center)"]
[{"$nulls":7},{"$f":"Copyright","v":"Copyright 2026 Jack Rosellini, Rosebud Systems©, all rights reserved."},{"$nulls":3},{"$f":"\"Updated: \"&TEXT(Revised,\"mm-dd-yyyy\")","v":"Updated: 02-16-2026"}]